Cogmind - Beta 14 @@@ ROGUE MODE // 2025.05.03 @ 11:20:23 Player: Tease1234 Result: Destroyed by D-53 Grenadier with Mini Grenade Launcher Performance ------------- Evolutions (0) 0 Regions Visited (2) 400 Robots Destroyed (6) 30 Value Destroyed (112) 112 Prototype IDs (0) 0 Alien Tech Used (0) 0 Bonus (60) 60 TOTAL SCORE: 602 Bonus ------- Follower Combat Kills 60 Cogmind --------- Core Integrity 0/250 Matter 245/300 Energy 250/250 System Corruption 0% Temperature Cool (40) Movement Treading (320) Ox2 Location -10/Mines Parts ------- > --- POWER (1) -------- Ion Engine > --- PROPULSION (2) --- Light Treads Light Treads > --- UTILITY (2) ------ Small Storage Unit Huge Storage Unit > --- WEAPON (2) ------- Medium Laser Grenade Launcher > --- INVENTORY (25) --- Ion Engine Light Ion Engine Aluminum Leg Aluminum Leg Compact Wheel Compact Wheel Compact Wheel Hover Unit Medium Matter Pod (100) Light Armor Plating Medium Laser Small Laser Small Laser Peak State ------------ > --- POWER ------------ Ion Engine > --- PROPULSION ------- Light Treads Light Treads > --- UTILITY ---------- Small Storage Unit Huge Storage Unit > --- WEAPON ----------- EM Pulse Gun Medium Laser > --- INVENTORY -------- Aluminum Leg Aluminum Leg Compact Wheel Compact Wheel Light Armor Plating Medium Laser Small Laser Small Laser Grenade Launcher Grenade Launcher [Rating: 8] Favorites ----------- Power Ion Engine Engine Ion Engine Propulsion Light Treads Treads Light Treads Wheel Compact Wheel Utility Small Storage Unit Storage Small Storage Unit Weapon Medium Laser Energy Gun Medium Laser Launcher Grenade Launcher Build | -11 -10 -10 ------- Run | Yrd Mat Min Slots Evolved . | . . . Power . | . . . Propulsion . | . . . Utility . | . . . Weapon . | . . . Parts Attached 12 | 9 . 3 Power 2 | 2 . . Engine 2 | 2 . . Core . | . . . Reactor . | . . . Propulsion 4 | 4 . . Treads 2 | 2 . . Leg . | . . . Wheel 2 | 2 . . Hover . | . . . Flight . | . . . Utility 2 | 1 . 1 Device . | . . . Storage 2 | 1 . 1 Processor . | . . . Hackware . | . . . Protection . | . . . Artifact . | . . . Weapon 4 | 2 . 2 Energy Gun 2 | 2 . . Energy Cannon . | . . . Ballistic Gun . | . . . Ballistic Cannon . | . . . Launcher 2 | . . 2 Special Weapon . | . . . Impact Weapon . | . . . Slashing Weapon . | . . . Piercing Weapon . | . . . Special Melee Weapon . | . . . Unidentified Prototypes . | . . . Parts Lost 2 | . . 2 Power . | . . . Propulsion . | . . . Utility . | . . . Weapon 2 | . . 2 Highest Loss Streak 2 | . . 2 To Critical Strikes . | . . . Average Slot Usage (%) 94 | . 85 96 Engine 14 | . 14 14 Treads 28 | . 28 28 Storage 22 | . 14 24 Energy Gun 27 | . 28 27 Peak Build Rating 8 | 6 6 8 Average Rating 7 | 4 6 7 On Entrance 4 | . 6 6 Naked Turns . | . . . Heaviest Build 94 | 14 14 94 Greatest Support 40 | 40 40 40 Greatest Overweight (x) 2 | 2 . 2 Average Overweight (x) . | . . 1 Largest Inventory Capacity 25 | 8 8 25 Average Capacity 17 | 6 8 20 Most Carried 15 | 5 8 15 Average Carried 11 | 4 7 13 Final Capacity 25 | 8 8 25 Final Carried 13 | 5 8 13 Class Distribution -------------------- 100% | Mutant Dominant Class ---------------- Mutant | -10/Materials Mutant | -10/Mines Resources | -11 -10 -10 ----------- Run | Yrd Mat Min Matter Collected 400 | 197 93 110 Remotely . | . . . Salvage Created 130 | . 114 16 Parts 15 | . 10 5 Haulers Intercepted . | . . . Recyclers Shooed . | . . . Parts Field Recycled . | . . . Retrieved Matter . | . . . Parts Self-Destructed . | . . . Prevented . | . . . Kills | -11 -10 -10 ------- Run | Yrd Mat Min Combat Hostiles Destroyed 5 | . 2 3 Guns 2 | . 2 . AOE 3 | . . 3 Classes Destroyed 3 | . 2 1 Worker 1 | . 1 . Swarmer 3 | . . 3 Grunt 2 | . 2 . Best Kill Streak 3 | . 3 3 Combat Bots Only 3 | . 2 3 Max Kills in Single Turn 3 | . 1 3 Gunslinging . | . . . Exploded 3 | . . 3 Melee . | . . . Uniques/NPCs Destroyed . | . . . Combat | -11 -10 -10 -------- Run | Yrd Mat Min Hostile Shots Fired 51 | . 20 31 Missed 14 | . 4 10 Damage Taken 718 | . 183 535 Core 256 | . 67 189 Absorbed by Shields . | . . . Core Remaining (%) 100 | 100 . . Volleys Fired 14 | . 9 5 Largest 2 | . 2 2 Hottest 90 | . 90 90 Shots Fired 28 | . 18 10 Gun 24 | . 18 6 Cannon . | . . . Launcher 4 | . . 4 Special . | . . . Kinetic . | . . . Thermal 14 | . 9 5 Explosive 4 | . . 4 Electromagnetic 10 | . 9 1 Robot Hit Streak 6 | . 6 4 Robot Miss Streak 2 | . 2 1 Penetration Max . | . . . Secondary Targets 1 | . 1 . Max Gunslinging Chain 1 | . 1 . Shots Hit Robots 14 | . 8 6 Core Hits 21 | . 6 15 Critical Kills . | . . . Critical Parts Destroyed . | . . . Critical Strikes 2 | . 1 1 Burn 2 | . 1 1 Melee Attacks . | . . . Impact . | . . . Slashing . | . . . Piercing . | . . . Sneak Attacks . | . . . Combat Hostiles . | . . . Follow-up Attacks . | . . . Damage Inflicted 387 | . 122 265 Guns 158 | . 122 36 Cannons . | . . . Explosions 229 | . . 229 Melee . | . . . Ramming . | . . . Kinetic . | . . . Thermal 63 | . 39 24 Explosive 229 | . . 229 Electromagnetic 95 | . 83 12 Impact . | . . . Slashing . | . . . Piercing . | . . . Highest Corruption . | . . . Average Corruption . | . . . Corruption Purged . | . . . Corruption Blocked . | . . . Overload Shots . | . . . Overflow Damage . | . . . Projectiles . | . . . Explosions . | . . . Melee . | . . . Knockbacks . | . . . Impact . | . . . Kinetic . | . . . Secondary . | . . . Self-Inflicted Damage . | . . . Shots . | . . . Rammed . | . . . Targets Rammed . | . . . Kicked . | . . . Crushed . | . . . Highest Temperature 196 | . 196 40 Average Temperature 74 | . 91 22 Received Heat Transfer 81 | . 81 . Siege Activations . | . . . Robots Corrupted . | . . . Combat Hostiles . | . . . Parts Fried . | . . . Impact Corruptions . | . . . Robots Melted . | . . . Combat Hostiles . | . . . Parts Melted . | . . . Heat Transferred 333 | . 185 148 Parts Sabotaged . | . . . Parts Stolen . | . . . Parts Stripped . | . . . Power Chain Reactions . | . . . Alert | -11 -10 -10 ------- Run | Yrd Mat Min Peak Influence 91 | . 70 91 Initial 27 | . . 27 Average 14 | . 16 15 Maximum Alert Level . | . . . Low Security (%) 100 | 100 100 100 Level 1 . | . . . Level 2 . | . . . Level 3 . | . . . Level 4 . | . . . Level 5 . | . . . High Security . | . . . Max Security . | . . . Squads Dispatched 1 | . 1 . Investigation . | . . . Extermination . | . . . Reinforcement 1 | . 1 . Assault . | . . . Garrison . | . . . Intercept . | . . . Searches Triggered . | . . . Construction Impeded . | . . . Haulers Reinforced . | . . . Active Scanning Responses . | . . . Cargo Convoy Interrupts . | . . . Stealth | -11 -10 -10 --------- Run | Yrd Mat Min Distress Signals 2 | . 2 . Communications Jammed . | . . . Distress Signals . | . . . Times Spotted 19 | . 9 10 Peak Tracking Total 7 | . 7 7 Tactical Retreats . | . . . Traps | -11 -10 -10 ------- Run | Yrd Mat Min Traps Triggered . | . . . Indirectly . | . . . Trap Hack Attempts . | . . . Triggered . | . . . Disarmed . | . . . Reprogrammed . | . . . Reused . | . . . Traps Extracted . | . . . Installed . | . . . Triggered . | . . . Machines | -11 -10 -10 ---------- Run | Yrd Mat Min Machines Disabled . | . . . Max in Single Turn . | . . . Machines Repaired . | . . . Machines Dismantled . | . . . Machines Sabotaged . | . . . Overloaded Fab Kills . | . . . Hacking | -11 -10 -10 --------- Run | Yrd Mat Min Machines Accessed . | . . . Terminals . | . . . Fabricators . | . . . Repair Stations . | . . . Recycling Units . | . . . Scanalyzers . | . . . Garrison Access . | . . . Total Hacks . | . . . Successful . | . . . Failed . | . . . Catastrophic . | . . . Database Lockouts . | . . . Manual . | . . . Terminals . | . . . Fabricators . | . . . Repair Stations . | . . . Recycling Units . | . . . Scanalyzers . | . . . Garrison Access . | . . . Terminal Hacks . | . . . Fabricator Hacks . | . . . Repair Station Hacks . | . . . Recycling Unit Hacks . | . . . Scanalyzer . | . . . Garrison Access Hacks . | . . . Unauthorized Hacks . | . . . Terminals . | . . . Fabricators . | . . . Repair Stations . | . . . Recycling Units . | . . . Scanalyzers . | . . . Garrison Access . | . . . Data Cores Recovered . | . . . Used . | . . . Hacking Detections . | . . . Full Trace Events . | . . . Feedback Events . | . . . Feedback Blocked . | . . . Robot Schematics Acquired . | . . . Robots Built . | . . . Authchips . | . . . Time . | . . . Total Robot Build Rating . | . . . Part Schematics Acquired . | . . . Parts Built . | . . . Authchips . | . . . Time . | . . . Total Part Build Rating . | . . . Parts Repaired . | . . . Time . | . . . Parts Recycled . | . . . Recycled Matter . | . . . Retrieved Matter . | . . . Retrieved Components . | . . . Parts Scanalyzed . | . . . Part Schematics Acquired . | . . . Parts Damaged . | . . . Bothacking | -11 -10 -10 ------------ Run | Yrd Mat Min Used RIF Installer . | . . . Robots Hacked . | . . . Non-combat . | . . . Combat . | . . . Robot Hacks Applied . | . . . Relay Couplers Released . | . . . Fabnet Peak Effective % . | . . . Robots Rewired . | . . . Allies Hacked . | . . . Hacks Repelled . | . . . Allies | -11 -10 -10 -------- Run | Yrd Mat Min Total Allies 2 | . . 2 Largest Group 2 | . . 2 Highest-Rated Group 42 | . . 42 Highest-Rated Ally 31 | . . 31 Total Orders . | . . . Ally Attacks 12 | . . 12 Total Damage 146 | . . 146 Kills 2 | . . 2 Allies Corrupted . | . . . Allies Melted . | . . . Intel | -11 -10 -10 ------- Run | Yrd Mat Min Robot Analysis Total . | . . . Derelict Logs Recovered . | . . . Drone Launches . | . . . Drone Recoveries . | . . . Exploration | -11 -10 -10 ------------- Run | Yrd Mat Min Turns Passed 1280 | 92 182 1006 Spaces Moved 528 | 56 92 380 Core 22 | 22 . . Treads 503 | 31 92 380 Legs . | . . . Wheels 3 | 3 . . Hover . | . . . Flight . | . . . Fastest Speed 50 | 50 160 160 Average Speed 222 | 125 160 252 Slowest Speed 320 | 160 160 320 Overloaded Moves . | . . . Propulsion Burnouts . | . . . Robots Hopped . | . . . Cave-ins Triggered . | . . . Exploration Rate (%) 27 | 5 16 60 Regions Visited 2 Branch Regions 1 Pre-discovered Areas . | . . . Known Exits Taken . | . . . Unknown Exits Taken 2 | 1 1 . Scrap Searched 1 | . . 1 Spaces Dug . | . . . Terrain Destroyed 35 | . . 35 Melee . | . . . Projectile . | . . . AOE 35 | . . 35 Terrain Rammed . | . . . Walls Destroyed . | . . . Machines Disabled . | . . . Actions | -11 -10 -10 --------- Run | Yrd Mat Min Total 602 | 76 109 417 Wait 33 | 5 6 22 Move 526 | 55 91 380 Hop . | . . . Pick Up 16 | 6 3 7 Fast Attach 6 | 5 . 1 Attach 3 | 1 . 2 Detach . | . . . Swap 3 | 3 . . Drop 1 | 1 . . Fire 14 | . 9 5 Melee . | . . . Ram . | . . . Kick . | . . . Crush . | . . . Escape Stasis . | . . . Rewire . | . . . Trap . | . . . Miscellaneous . | . . . Route ------- -11/Scrapyard -10/Materials -10/Mines History --------- Turn | Location | Event 14 | -11/Scrapyard | Discovered new exit (range 14) 93 | -11/Scrapyard | Entered Materials 262 | -10/Materials | Discovered new exit (range 7) 275 | -10/Materials | Entered Mines 282 | -10/Mines | Met a Derelict bent on vengeance 303 | -10/Mines | Build established: Mutant 528 | -10/Mines | Found DCF Scrap (9 items) 1235 | -10/Mines | Assembled infested the area 1275 | -10/Mines | Core integrity fell below 50% 1280 | -10/Mines | Core integrity fell below 20% 1281 | -10/Mines | Destroyed by D-53 Grenadier with Mini Grenade Launcher Last Messages --------------- 01267_ C-30 ARC bursts open, deploying its payload. 01267_ D-53 Grenadier unfolds itself. 01268_ K-01 Serf collects debris. 01269_ K-01 Serf destroyed. 01270_ S-10 Pest destroyed. 01270_ D-53 Grenadier suffers critical hit (Burn). 01272_ U-05 Engineer lays Concrete. 01273_ as-99296 destroyed. 01273_ U-05 Engineer lays Concrete. 01274_ The unstable cave ceiling collapses. 01274_ U-05 Engineer lays Concrete. 01275_ as-69466 destroyed. 01275_ U-05 Engineer lays Concrete. 01276_ The unstable cave ceiling collapses. 01276_ U-05 Engineer lays Concrete. 01276_ Grenade Launcher destroyed. 01277_ The unstable cave ceiling collapses. 01277_ U-05 Engineer lays Concrete. 01279_ The unstable cave ceiling collapses. 01279_ U-05 Engineer lays Concrete. Map ----- +----------------------------------------------------+ | ??????????????????????????????????????????????? | | ??????????????????????????????????????????????? | | ??????????????????????????????????????????????? | | ??????????????????????????????????????????????? | | ??????????????????????????????????????????????? | | ??????????????????????????????????????????????? | | ??????????????????????????????????????????????? | | ??????????????????????????????????????????????? | | ??????????????????????????????????????????????? | | ??????????????????????????????????????????????? | | ??????????????????????????????????????????????? | | ??????????????????????????????????????????????? | | ??????????????????????????????????????????????? | | ??????????????????????????????????????????????? | | ????????????????#?????????????????????????????? | | ????????????????# ????????????????????????????? | | ????????????????# ???????????###?#????????????? | | ????????????????# ????????? # ##???????????? | | ????????????????? ???????? ##??????????? | | ?????????????????# ????### ##?????????? | | ?????????????????# ##### [* ????????? | | ?????????????????# dd% ?????????? | | ?????????????????#a ##??????????? | | ?????????????????# % #??????????? | | ?????????????????# #??????????????? | | ?????????????????# @ u##????????????????? | | ?????????????????# ##????????????????? | | ?????????????????# #?????????????????? | | ?????????????????## #?????????????????? | | ??????????????????## ##?????????????????? | | ???????????????????# #??????????????????? | | ???????????????????# ##??????????????????? | | ???????????????????# ######???????????????????? | | ?????????????????### ###??????????????????????? | | ????????????????## ##????????????####?????? | | ???????????????## #######?????## ##????? | | ???????????????# %#?????# ##???# | | ??????????????# % ####??# ##?## | | ??????????????# ## ## #### ### | | ??????????????# #?## ### ## | | ??????????#### #### ##?##### | | ?????????## #??????## | | ????????## ## ##### #???????# | | ????????# #?###????# #???????## | | ???????## ##????????# #????????### | | ???????# ##?????????# #??????????## % | | ???????# ##??????????# #??????????## ### | | ???????# #???????????# #?????????## ##?## | | ???????# #???????????# #?????????# ##???? | | ????#### #??####?????# #?????????# ##????? | +----------------------------------------------------+ Best States ------------- Heat Dissipation 25 Energy Generation 10 Energy Capacity 250 Matter Stores 300 Matter Capacity 300 Sight Range 16 Terrain Scan Density 10 Evasion (%) 50 Recoil Reduction 2 Item Schematics ----------------- None Robot Schematics ------------------ None Fabricated ------------ Nothing Alien Tech Used ----------------- None Achievements -------------- None Challenges ------------ None Game ------ Seed NavigationResetTerminator Manual? 0 Play Time 00:07:27 Cumulative 2.9 hours Start 2025.05.03 @ 11:13:42 End 2025.05.03 @ 11:20:23 Sessions 1 Manual Loads 0 Difficulty Rogue Special Mode None Game No. 9 Rogue 9 Adventurer 0 Explorer 0 Win Type - Total 0 Types 0/0/0/0/0/0/0/0/0 Lore% 1 Gallery% 7 Achievement% 8 Wizard Run 0 Options --------- Layout 0 ASCII 0 Keyboard 0 Movement Mouse Keybinds 0 Fullscreen 1 Font 18/SmallcapsGlow Map View 76x50 Zoom Use 0% Tactical HUD 1 Map Filters NONE Filters NONE Steam 1 RUN: ded9f79a-2fd5-47d3-8ef9-0809ea64b781